Workbook

Sheet Instructions
A1: Instructions for Contract Time for Completion Spreadsheet
A3: See FDM 19-10-30 for general information on the Contract Time for Completion analysis.
A5: 1. The form is locked. Information can only be entered in the yellow shaded cells.
A6: 2. Enter project information at the top of the form.
A7: 3. Enter controlling items on left side of page under Item Analysis.
A8: 4. Enter item quantities for each stage (all stages do not need to be used).
A9: 5. Enter item units and production rates (see FDM 19-10 Attachment 30.3 for example rates).
A10: 6. Enter begin day for each item and stage (the end date will be calculated automatically). Tip: You can use a formula here, for instance to start Item 2 when Item 1 is done, you would enter =W30 in cell V31. That way if you add 2 days to Item 1, the start date for Item 2 will automatically adjust by 2 days.
A11: 7. If the default "Stage 1", "Stage 2", etc., doesn't work for your project, you can edit them in the yellow shaded cells. The legend and other column headings will update automatically.
A12: 8. Enter the construction year at the bottom of the page to automatically fill out all the Begin and End dates for each month. Then, delete Begin and End dates for months before the start date or after the completion date. Change the Begin date for the applicable month to the actual probable date of beginning and change the End date for the applicable month to the anticipated completion date. Under the Month column, delete names for unused months (those with no working days) to remove the labels from the Gantt Chart.
A13: 9. Enter number of holidays days each month.
A14: 10. Enter probable working day percentage based on the work type (see FDM 19-10 Attachment 30.2).
A15: 11. Enter remarks as necessary.
A16: 12. Enter number of calendar days, working days, and completion date based on the time of completion chart.
A17: 13. To get rid of extra days (blank space) on the right side of the Gantt Chart, right click on the top axis and select "Format Axis". Under "Axis Options", Change "Maximum" from "Auto" to "Fixed" and set the value to the total number of working days for the contract.
A19: Contact David Layton (david.layton@dot.wi.gov) with any suggested revisions to this form.
A25: Release Notes
A26: 10/2009 - Fixed Stage 3 formula error
A27: 01/2010 - Added ability to rename stages.
A28: 09/2010 - Updated FDM links to account for FDM file revisions.

Sheet Blank Time Chart
A1: CONTRACT TIME FOR COMPLETION
A2: Wisconsin Department of Transportation DT1923 04/2011
A4: Project ID | B4: 1430-18-71/1430-23-71 | E4: Highway | F4: STH 23 | J4: Project Title | K4: Rosendale - Fond du Lac/Village of Rosendale | AA4: Date of Letting | AB4: 2018-05-08
A5: Work Type | B5: Resurface | E5: County | F5: Fond du Lac | J5: Project Limits | K5: Lafayette - Becker Blvd/Becker Blvd - Townline Rd | AA5: Probable Date of Beginning | AB5: 2018-06-18
A29: ITEM ANALYSIS
A30: Item | C30: Contract Quantity per Stage | H30: Total Quantity | I30: Unit | J30: Production Rate | L30: Working Days (per Stage) | U30: Stage 1 | W30: Stage 2 | Y30: Stage 3 | AA30: Stage 4 | AC30: Stage 5
C31: =U30 -> Stage 1 | D31: =W30 -> Stage 2 | E31: =Y30 -> Stage 3 | F31: =AA30 -> Stage 4 | G31: =AC30 -> Stage 5 | U31: Begin | V31: End | W31: Begin | X31: End | Y31: Begin | Z31: End | AA31: Begin | AB31: End | AC31: Begin | AD31: End | AG31: Gap 1 | AH31: Gap 2 | AI31: Gap 3 | AJ31: Gap 4 | AK31: Gap 5
A32: Traffic Control | C32: 1 | D32: 1 | E32: 1 | F32: 1 | H32: =IF(AND(ISBLANK(C32),ISBLANK(D32),ISBLANK(E32),ISBLANK(F32),ISBLANK(G32)),"",SUM(C32:G32)) -> 4 | I32: DAY | J32: 1 | L32: =IF(ISBLANK(C32),"",ROUNDUP(C32/$J32,0)) -> 1 | M32: / | N32: =IF(ISBLANK(D32),"",ROUNDUP(D32/$J32,0)) -> 1 | O32: / | P32: =IF(ISBLANK(E32),"",ROUNDUP(E32/$J32,0)) -> 1 | Q32: / | R32: =IF(ISBLANK(F32),"",ROUNDUP(F32/$J32,0)) -> 1 | S32: / | T32: =IF(ISBLANK(G32),"",ROUNDUP(G32/$J32,0)) ->  | U32: 1 | V32: =IF(ISBLANK(U32),"",U32+L32) -> 2 | W32: 18 | X32: =IF(ISBLANK(W32),"",W32+N32) -> 19 | Y32: 34 | Z32: =IF(ISBLANK(Y32),"",Y32+P32) -> 35 | AA32: 46 | AB32: =IF(ISBLANK(AA32),"",AA32+R32) -> 47 | AD32: =IF(ISBLANK(AC32),"",AC32+T32) ->  | AG32: =U32 -> 1 | AH32: =IF(W32>0,IF(V32="",W32,W32-V32),0) -> 16 | AI32: =IF(Y32>0,IF(X32="",IF(V32="",Y32,Y32-V32),Y32-X32),0) -> 15 | AJ32: =IF(AA32>0,IF(Z32="",IF(X32="",IF(V32="",AA32,AA32-V32),AA32-X32),AA32-Z32),0) -> 11 | AK32: =IF(AC32>0,IF(AB32="",IF(Z32="",IF(X32="",IF(V32="",AC32,AC32-V32),AC32-X32),AC32-Z32),AC32-AB32),0) -> 0
A33: 1430-23-71 | M33: / | O33: / | Q33: / | S33: / | T33: =IF(ISBLANK(G33),"",ROUNDUP(G33/$J33,0)) ->  | V33: =IF(ISBLANK(U33),"",U33+L33) ->  | X33: =IF(ISBLANK(W33),"",W33+N33) ->  | Z33: =IF(ISBLANK(Y33),"",Y33+P33) ->  | AB33: =IF(ISBLANK(AA33),"",AA33+R33) ->  | AD33: =IF(ISBLANK(AC33),"",AC33+T33) ->  | AG33: =U33 -> 0 | AH33: =IF(W33>0,IF(V33="",W33,W33-V33),0) -> 0 | AI33: =IF(Y33>0,IF(X33="",IF(V33="",Y33,Y33-V33),Y33-X33),0) -> 0 | AJ33: =IF(AA33>0,IF(Z33="",IF(X33="",IF(V33="",AA33,AA33-V33),AA33-X33),AA33-Z33),0) -> 0 | AK33: =IF(AC33>0,IF(AB33="",IF(Z33="",IF(X33="",IF(V33="",AC33,AC33-V33),AC33-X33),AC33-Z33),AC33-AB33),0) -> 0
A34: -Storm Sewer structures | C34: 4 | D34: 1 | H34: 5 | I34: EACH | J34: 3 | L34: 2 | M34: / | N34: 1 | O34: / | Q34: / | S34: / | T34: =IF(ISBLANK(G34),"",ROUNDUP(G34/$J34,0)) ->  | U34: 1 | V34: =IF(ISBLANK(U34),"",U34+L34) -> 3 | W34: 18 | X34: 19 | AG34: 1 | AH34: 15 | AI34: =IF(Y34>0,IF(X34="",IF(V34="",Y34,Y34-V34),Y34-X34),0) -> 0 | AJ34: 0 | AK34: 0
A35: -Storm Sewer pipe | C35: 54 | D35: 8 | H35: 62 | I35: LF | J35: 50 | L35: 2 | M35: / | N35: 1 | O35: / | Q35: / | S35: / | U35: 1 | V35: 3 | W35: 18 | X35: 19 | AG35: 1 | AH35: 15 | AI35: 0 | AJ35: 0 | AK35: 0
A36: -Removing Asph. Surf. Milling | D36: 5543 | E36: 5179 | H36: =IF(AND(ISBLANK(C36),ISBLANK(D36),ISBLANK(E36),ISBLANK(F36),ISBLANK(G36)),"",SUM(C36:G36)) -> 10722 | I36: SY | J36: 10000 | L36: =IF(ISBLANK(C36),"",ROUNDUP(C36/$J36,0)) ->  | M36: / | N36: =IF(ISBLANK(D36),"",ROUNDUP(D36/$J36,0)) -> 1 | O36: / | P36: =IF(ISBLANK(E36),"",ROUNDUP(E36/$J36,0)) -> 1 | Q36: / | R36: =IF(ISBLANK(F36),"",ROUNDUP(F36/$J36,0)) ->  | S36: / | T36: =IF(ISBLANK(G36),"",ROUNDUP(G36/$J36,0)) ->  | V36: =IF(ISBLANK(U36),"",U36+L36) ->  | W36: 19 | X36: =IF(ISBLANK(W36),"",W36+N36) -> 20 | Y36: 34 | Z36: =IF(ISBLANK(Y36),"",Y36+P36) -> 35 | AB36: =IF(ISBLANK(AA36),"",AA36+R36) ->  | AD36: =IF(ISBLANK(AC36),"",AC36+T36) ->  | AG36: =U36 -> 0 | AH36: =IF(W36>0,IF(V36="",W36,W36-V36),0) -> 19 | AI36: =IF(Y36>0,IF(X36="",IF(V36="",Y36,Y36-V36),Y36-X36),0) -> 14 | AJ36: =IF(AA36>0,IF(Z36="",IF(X36="",IF(V36="",AA36,AA36-V36),AA36-X36),AA36-Z36),0) -> 0 | AK36: =IF(AC36>0,IF(AB36="",IF(Z36="",IF(X36="",IF(V36="",AC36,AC36-V36),AC36-X36),AC36-Z36),AC36-AB36),0) -> 0
A37: -HMA | D37: 974 | E37: 1057 | H37: 2031 | I37: TON | J37: 1100 | M37: / | N37: 1 | O37: / | P37: 1 | Q37: / | S37: / | W37: 20 | X37: 21 | Y37: 35 | Z37: 36 | AG37: 0 | AH37: 20 | AI37: 14 | AJ37: 0 | AK37: 0
A38: -BASE AGG | D38: 335 | E38: 335 | H38: 670 | I38: TON | J38: 500 | M38: / | N38: 1 | O38: / | P38: 1 | Q38: / | S38: / | W38: 21 | X38: 22 | Y38: 36 | Z38: 37 | AG38: 0 | AH38: 21 | AI38: 14 | AJ38: 0 | AK38: 0
A39: -PAVEMENT MARKING | F39: 16346 | H39: 16346 | I39: LF | J39: 8200 | M39: / | O39: / | Q39: / | R39: 2 | S39: / | AA39: 46 | AB39: 48 | AG39: 0 | AH39: 0 | AI39: 0 | AJ39: 46 | AK39: 0
A40: sidewalk/curb ramps | E40: 6 | H40: =IF(AND(ISBLANK(C40),ISBLANK(D40),ISBLANK(E40),ISBLANK(F40),ISBLANK(G40)),"",SUM(C40:G40)) -> 6 | I40: EACH | J40: 0.25 | L40: =IF(ISBLANK(C40),"",ROUNDUP(C40/$J40,0)) ->  | M40: / | N40: =IF(ISBLANK(D40),"",ROUNDUP(D40/$J40,0)) ->  | O40: / | P40: =IF(ISBLANK(E40),"",ROUNDUP(E40/$J40,0)) -> 24 | Q40: / | R40: =IF(ISBLANK(F40),"",ROUNDUP(F40/$J40,0)) ->  | S40: / | T40: =IF(ISBLANK(G40),"",ROUNDUP(G40/$J40,0)) ->  | V40: =IF(ISBLANK(U40),"",U40+L40) ->  | X40: =IF(ISBLANK(W40),"",W40+N40) ->  | Y40: 35 | Z40: =IF(ISBLANK(Y40),"",Y40+P40) -> 59 | AB40: =IF(ISBLANK(AA40),"",AA40+R40) ->  | AD40: =IF(ISBLANK(AC40),"",AC40+T40) ->  | AG40: =U40 -> 0 | AH40: =IF(W40>0,IF(V40="",W40,W40-V40),0) -> 0 | AI40: =IF(Y40>0,IF(X40="",IF(V40="",Y40,Y40-V40),Y40-X40),0) -> 35 | AJ40: =IF(AA40>0,IF(Z40="",IF(X40="",IF(V40="",AA40,AA40-V40),AA40-X40),AA40-Z40),0) -> 0 | AK40: =IF(AC40>0,IF(AB40="",IF(Z40="",IF(X40="",IF(V40="",AC40,AC40-V40),AC40-X40),AC40-Z40),AC40-AB40),0) -> 0
A42: 1430-18-71 | H42: =IF(AND(ISBLANK(C42),ISBLANK(D42),ISBLANK(E42),ISBLANK(F42),ISBLANK(G42)),"",SUM(C42:G42)) ->  | L42: =IF(ISBLANK(C42),"",ROUNDUP(C42/$J42,0)) ->  | M42: / | N42: =IF(ISBLANK(D42),"",ROUNDUP(D42/$J42,0)) ->  | O42: / | P42: =IF(ISBLANK(E42),"",ROUNDUP(E42/$J42,0)) ->  | Q42: / | R42: =IF(ISBLANK(F42),"",ROUNDUP(F42/$J42,0)) ->  | S42: / | T42: =IF(ISBLANK(G42),"",ROUNDUP(G42/$J42,0)) ->  | V42: =IF(ISBLANK(U42),"",U42+L42) ->  | AG42: 0 | AH42: 0 | AI42: =IF(Y42>0,IF(X42="",IF(V42="",Y42,Y42-V42),Y42-X42),0) -> 0 | AJ42: 0 | AK42: 0
A43: SAWING | C43: 7340 | H43: =IF(AND(ISBLANK(C43),ISBLANK(D43),ISBLANK(E43),ISBLANK(F43),ISBLANK(G43)),"",SUM(C43:G43)) -> 7340 | I43: LF | J43: 1500 | L43: =IF(ISBLANK(C43),"",ROUNDUP(C43/$J43,0)) -> 5 | M43: / | N43: =IF(ISBLANK(D43),"",ROUNDUP(D43/$J43,0)) ->  | O43: / | P43: =IF(ISBLANK(E43),"",ROUNDUP(E43/$J43,0)) ->  | Q43: / | R43: =IF(ISBLANK(F43),"",ROUNDUP(F43/$J43,0)) ->  | S43: / | T43: =IF(ISBLANK(G43),"",ROUNDUP(G43/$J43,0)) ->  | U43: 1 | V43: =IF(ISBLANK(U43),"",U43+L43) -> 6 | X43: =IF(ISBLANK(W43),"",W43+N43) ->  | Z43: =IF(ISBLANK(Y43),"",Y43+P43) ->  | AB43: =IF(ISBLANK(AA43),"",AA43+R43) ->  | AD43: =IF(ISBLANK(AC43),"",AC43+T43) ->  | AG43: =U43 -> 1 | AH43: =IF(W43>0,IF(V43="",W43,W43-V43),0) -> 0 | AI43: =IF(Y43>0,IF(X43="",IF(V43="",Y43,Y43-V43),Y43-X43),0) -> 0 | AJ43: =IF(AA43>0,IF(Z43="",IF(X43="",IF(V43="",AA43,AA43-V43),AA43-X43),AA43-Z43),0) -> 0 | AK43: =IF(AC43>0,IF(AB43="",IF(Z43="",IF(X43="",IF(V43="",AC43,AC43-V43),AC43-X43),AC43-Z43),AC43-AB43),0) -> 0
A44: Removing Asph. Deck Overlay | C44: 327 | D44: 327 | H44: =IF(AND(ISBLANK(C44),ISBLANK(D44),ISBLANK(E44),ISBLANK(F44),ISBLANK(G44)),"",SUM(C44:G44)) -> 654 | I44: LF | J44: 327 | L44: =IF(ISBLANK(C44),"",ROUNDUP(C44/$J44,0)) -> 1 | M44: / | N44: =IF(ISBLANK(D44),"",ROUNDUP(D44/$J44,0)) -> 1 | O44: / | P44: =IF(ISBLANK(E44),"",ROUNDUP(E44/$J44,0)) ->  | Q44: / | R44: =IF(ISBLANK(F44),"",ROUNDUP(F44/$J44,0)) ->  | S44: / | T44: =IF(ISBLANK(G44),"",ROUNDUP(G44/$J44,0)) ->  | U44: 1 | V44: =IF(ISBLANK(U44),"",U44+L44) -> 2 | W44: 18 | X44: =IF(ISBLANK(W44),"",W44+N44) -> 19 | Z44: =IF(ISBLANK(Y44),"",Y44+P44) ->  | AB44: =IF(ISBLANK(AA44),"",AA44+R44) ->  | AD44: =IF(ISBLANK(AC44),"",AC44+T44) -> 
A45: deck prep | C45: 327 | D45: 327 | H45: =IF(AND(ISBLANK(C45),ISBLANK(D45),ISBLANK(E45),ISBLANK(F45),ISBLANK(G45)),"",SUM(C45:G45)) -> 654 | I45: SY | J45: 50 | L45: =IF(ISBLANK(C45),"",ROUNDUP(C45/$J45,0)) -> 7 | M45: / | N45: =IF(ISBLANK(D45),"",ROUNDUP(D45/$J45,0)) -> 7 | O45: / | P45: =IF(ISBLANK(E45),"",ROUNDUP(E45/$J45,0)) ->  | Q45: / | R45: =IF(ISBLANK(F45),"",ROUNDUP(F45/$J45,0)) ->  | S45: / | T45: =IF(ISBLANK(G45),"",ROUNDUP(G45/$J45,0)) ->  | U45: 2 | V45: =IF(ISBLANK(U45),"",U45+L45) -> 9 | W45: 19 | X45: =IF(ISBLANK(W45),"",W45+N45) -> 26 | Z45: =IF(ISBLANK(Y45),"",Y45+P45) ->  | AB45: =IF(ISBLANK(AA45),"",AA45+R45) ->  | AD45: =IF(ISBLANK(AC45),"",AC45+T45) -> 
A46: bridge overlay | C46: 45 | D46: 46 | H46: =IF(AND(ISBLANK(C46),ISBLANK(D46),ISBLANK(E46),ISBLANK(F46),ISBLANK(G46)),"",SUM(C46:G46)) -> 91 | I46: CY | J46: 45 | L46: =IF(ISBLANK(C46),"",ROUNDUP(C46/$J46,0)) -> 1 | M46: / | N46: =IF(ISBLANK(D46),"",ROUNDUP(D46/$J46,0)) -> 2 | O46: / | P46: =IF(ISBLANK(E46),"",ROUNDUP(E46/$J46,0)) ->  | Q46: / | R46: =IF(ISBLANK(F46),"",ROUNDUP(F46/$J46,0)) ->  | S46: / | T46: =IF(ISBLANK(G46),"",ROUNDUP(G46/$J46,0)) ->  | U46: 9 | V46: =IF(ISBLANK(U46),"",U46+L46) -> 10 | W46: 26 | X46: =IF(ISBLANK(W46),"",W46+N46) -> 28 | Z46: =IF(ISBLANK(Y46),"",Y46+P46) ->  | AB46: =IF(ISBLANK(AA46),"",AA46+R46) ->  | AD46: =IF(ISBLANK(AC46),"",AC46+T46) ->  | AG46: =U46 -> 9 | AH46: =IF(W46>0,IF(V46="",W46,W46-V46),0) -> 16 | AI46: =IF(Y46>0,IF(X46="",IF(V46="",Y46,Y46-V46),Y46-X46),0) -> 0 | AJ46: =IF(AA46>0,IF(Z46="",IF(X46="",IF(V46="",AA46,AA46-V46),AA46-X46),AA46-Z46),0) -> 0 | AK46: =IF(AC46>0,IF(AB46="",IF(Z46="",IF(X46="",IF(V46="",AC46,AC46-V46),AC46-X46),AC46-Z46),AC46-AB46),0) -> 0
A47: Removing Asph. Surf. Milling | D47: 75000 | E47: 75000 | H47: =IF(AND(ISBLANK(C47),ISBLANK(D47),ISBLANK(E47),ISBLANK(F47),ISBLANK(G47)),"",SUM(C47:G47)) -> 150000 | I47: SY | J47: 10000 | L47: =IF(ISBLANK(C47),"",ROUNDUP(C47/$J47,0)) ->  | M47: / | N47: =IF(ISBLANK(D47),"",ROUNDUP(D47/$J47,0)) -> 8 | O47: / | P47: =IF(ISBLANK(E47),"",ROUNDUP(E47/$J47,0)) -> 8 | Q47: / | R47: =IF(ISBLANK(F47),"",ROUNDUP(F47/$J47,0)) ->  | S47: / | T47: =IF(ISBLANK(G47),"",ROUNDUP(G47/$J47,0)) ->  | V47: =IF(ISBLANK(U47),"",U47+L47) ->  | W47: 20 | X47: 28 | Y47: 35 | Z47: 43 | AG47: 0 | AH47: 20 | AI47: =IF(Y47>0,IF(X47="",IF(V47="",Y47,Y47-V47),Y47-X47),0) -> 7 | AJ47: 0 | AK47: 0
A48: Removing Asph. Surface | D48: 1100 | E48: 1000 | H48: =IF(AND(ISBLANK(C48),ISBLANK(D48),ISBLANK(E48),ISBLANK(F48),ISBLANK(G48)),"",SUM(C48:G48)) -> 2100 | I48: SY | J48: 600 | L48: =IF(ISBLANK(C48),"",ROUNDUP(C48/$J48,0)) ->  | M48: / | N48: =IF(ISBLANK(D48),"",ROUNDUP(D48/$J48,0)) -> 2 | O48: / | P48: =IF(ISBLANK(E48),"",ROUNDUP(E48/$J48,0)) -> 2 | Q48: / | R48: =IF(ISBLANK(F48),"",ROUNDUP(F48/$J48,0)) ->  | S48: / | T48: =IF(ISBLANK(G48),"",ROUNDUP(G48/$J48,0)) ->  | V48: =IF(ISBLANK(U48),"",U48+L48) ->  | W48: 20 | X48: =IF(ISBLANK(W48),"",W48+N48) -> 22 | Y48: 35 | Z48: =IF(ISBLANK(Y48),"",Y48+P48) -> 37 | AB48: =IF(ISBLANK(AA48),"",AA48+R48) ->  | AD48: =IF(ISBLANK(AC48),"",AC48+T48) ->  | AG48: =U48 -> 0 | AH48: =IF(W48>0,IF(V48="",W48,W48-V48),0) -> 20 | AI48: =IF(Y48>0,IF(X48="",IF(V48="",Y48,Y48-V48),Y48-X48),0) -> 13 | AJ48: =IF(AA48>0,IF(Z48="",IF(X48="",IF(V48="",AA48,AA48-V48),AA48-X48),AA48-Z48),0) -> 0 | AK48: =IF(AC48>0,IF(AB48="",IF(Z48="",IF(X48="",IF(V48="",AC48,AC48-V48),AC48-X48),AC48-Z48),AC48-AB48),0) -> 0
A49: concrete base patching | C49: 2300 | D49: 2300 | H49: 4600 | I49: SY | J49: 150 | L49: 16 | M49: / | N49: 16 | O49: / | Q49: / | S49: / | U49: 2 | V49: 18 | W49: 18 | X49: 34 | AG49: 2 | AH49: 0 | AI49: 0 | AJ49: 0 | AK49: 0
A50: culvert pipes | C50: 11 | H50: =IF(AND(ISBLANK(C50),ISBLANK(D50),ISBLANK(E50),ISBLANK(F50),ISBLANK(G50)),"",SUM(C50:G50)) -> 11 | I50: EACH | J50: 2 | L50: =IF(ISBLANK(C50),"",ROUNDUP(C50/$J50,0)) -> 6 | M50: / | N50: =IF(ISBLANK(D50),"",ROUNDUP(D50/$J50,0)) ->  | O50: / | P50: =IF(ISBLANK(E50),"",ROUNDUP(E50/$J50,0)) ->  | Q50: / | R50: =IF(ISBLANK(F50),"",ROUNDUP(F50/$J50,0)) ->  | S50: / | T50: =IF(ISBLANK(G50),"",ROUNDUP(G50/$J50,0)) ->  | U50: 3 | V50: =IF(ISBLANK(U50),"",U50+L50) -> 9 | X50: =IF(ISBLANK(W50),"",W50+N50) ->  | Z50: =IF(ISBLANK(Y50),"",Y50+P50) ->  | AB50: =IF(ISBLANK(AA50),"",AA50+R50) ->  | AD50: =IF(ISBLANK(AC50),"",AC50+T50) ->  | AG50: =U50 -> 3 | AH50: =IF(W50>0,IF(V50="",W50,W50-V50),0) -> 0 | AI50: =IF(Y50>0,IF(X50="",IF(V50="",Y50,Y50-V50),Y50-X50),0) -> 0 | AJ50: =IF(AA50>0,IF(Z50="",IF(X50="",IF(V50="",AA50,AA50-V50),AA50-X50),AA50-Z50),0) -> 0 | AK50: =IF(AC50>0,IF(AB50="",IF(Z50="",IF(X50="",IF(V50="",AC50,AC50-V50),AC50-X50),AC50-Z50),AC50-AB50),0) -> 0
A51: HMA | D51: 22500 | E51: 22500 | H51: 45000 | I51: TON | J51: 3000 | M51: / | N51: 8 | O51: / | P51: 8 | Q51: / | S51: / | W51: 21 | X51: 29 | Y51: 36 | Z51: 44 | AG51: 0 | AH51: 21 | AI51: 7 | AJ51: 0 | AK51: 0
A52: base agg | D52: 3000 | E52: 3000 | H52: 6000 | I52: TON | J52: 1500 | M52: / | N52: 2 | O52: / | P52: 2 | Q52: / | S52: / | W52: 29 | X52: 31 | Y52: 44 | Z52: 46 | AG52: 0 | AH52: 29 | AI52: 13 | AJ52: 0 | AK52: 0
A53: landscaping | F53: 10000 | H53: 10000 | I53: SY | J53: 5000 | M53: / | O53: / | Q53: / | R53: 2 | S53: / | AA53: 46 | AB53: 48 | AG53: 0 | AH53: 0 | AI53: 0 | AJ53: 46 | AK53: 0
A54: CL rumble strips | F54: 33200 | H54: 33200 | I54: LF | J54: 10000 | M54: / | O54: / | Q54: / | R54: 4 | S54: / | AA54: 46 | AB54: 50 | AG54: 0 | AH54: 0 | AI54: 0 | AJ54: 46 | AK54: 0
A55: shoulder runble strips | F55: 54900 | H55: 54900 | I55: LF | J55: 10000 | M55: / | O55: / | Q55: / | R55: 6 | S55: / | AA55: 50 | AB55: 56 | AG55: 0 | AH55: 0 | AI55: 0 | AJ55: 50 | AK55: 0
A56: pavement marking | F56: 115000 | H56: =IF(AND(ISBLANK(C56),ISBLANK(D56),ISBLANK(E56),ISBLANK(F56),ISBLANK(G56)),"",SUM(C56:G56)) -> 115000 | I56: LF | J56: 15000 | L56: =IF(ISBLANK(C56),"",ROUNDUP(C56/$J56,0)) ->  | M56: / | N56: =IF(ISBLANK(D56),"",ROUNDUP(D56/$J56,0)) ->  | O56: / | P56: =IF(ISBLANK(E56),"",ROUNDUP(E56/$J56,0)) ->  | Q56: / | R56: =IF(ISBLANK(F56),"",ROUNDUP(F56/$J56,0)) -> 8 | S56: / | T56: =IF(ISBLANK(G56),"",ROUNDUP(G56/$J56,0)) ->  | V56: =IF(ISBLANK(U56),"",U56+L56) ->  | X56: =IF(ISBLANK(W56),"",W56+N56) ->  | Z56: =IF(ISBLANK(Y56),"",Y56+P56) ->  | AA56: 57 | AB56: =IF(ISBLANK(AA56),"",AA56+R56) -> 65 | AD56: =IF(ISBLANK(AC56),"",AC56+T56) ->  | AG56: =U56 -> 0 | AH56: =IF(W56>0,IF(V56="",W56,W56-V56),0) -> 0 | AI56: =IF(Y56>0,IF(X56="",IF(V56="",Y56,Y56-V56),Y56-X56),0) -> 0 | AJ56: =IF(AA56>0,IF(Z56="",IF(X56="",IF(V56="",AA56,AA56-V56),AA56-X56),AA56-Z56),0) -> 57 | AK56: =IF(AC56>0,IF(AB56="",IF(Z56="",IF(X56="",IF(V56="",AC56,AC56-V56),AC56-X56),AC56-Z56),AC56-AB56),0) -> 0
H57: =IF(AND(ISBLANK(C57),ISBLANK(D57),ISBLANK(E57),ISBLANK(F57),ISBLANK(G57)),"",SUM(C57:G57)) ->  | L57: =IF(ISBLANK(C57),"",ROUNDUP(C57/$J57,0)) ->  | M57: / | N57: =IF(ISBLANK(D57),"",ROUNDUP(D57/$J57,0)) ->  | O57: / | P57: =IF(ISBLANK(E57),"",ROUNDUP(E57/$J57,0)) ->  | Q57: / | R57: =IF(ISBLANK(F57),"",ROUNDUP(F57/$J57,0)) ->  | S57: / | T57: =IF(ISBLANK(G57),"",ROUNDUP(G57/$J57,0)) ->  | AG57: 0 | AH57: 0 | AI57: 0 | AJ57: 0 | AK57: 0
H58: =IF(AND(ISBLANK(C58),ISBLANK(D58),ISBLANK(E58),ISBLANK(F58),ISBLANK(G58)),"",SUM(C58:G58)) ->  | L58: =IF(ISBLANK(C58),"",ROUNDUP(C58/$J58,0)) ->  | M58: / | N58: =IF(ISBLANK(D58),"",ROUNDUP(D58/$J58,0)) ->  | O58: / | P58: =IF(ISBLANK(E58),"",ROUNDUP(E58/$J58,0)) ->  | Q58: / | R58: =IF(ISBLANK(F58),"",ROUNDUP(F58/$J58,0)) ->  | S58: / | T58: =IF(ISBLANK(G58),"",ROUNDUP(G58/$J58,0)) ->  | AG58: 0 | AH58: 0 | AI58: 0 | AJ58: 0 | AK58: 0
B60: Date | D60: Days | G60: Possible | H60: Probable Working Days | X60: REMARKS
A61: Month | B61: Begin | C61: End | D61: Month | E61: Total | F61: Holiday | G61: Work Days | H61: % | I61: Month | J61: Total
D62: =IF(AND(B62>0,C62>0),((C62+1)-B62),0) -> 0 | E62: =D62 -> 0 | G62: =NETWORKDAYS(B62,C62)-F62 -> 0 | I62: =ROUND(IF(G62>0,G62*H62*0.01,0),0) -> 0 | J62: =I62 -> 0
D63: 0 | E63: =E62+D63 -> 0 | G63: 0 | I63: 0 | J63: =J62+I63 -> 0
D64: 0 | E64: 0 | G64: 0 | I64: 0 | J64: 0
D65: 0 | E65: 0 | G65: 0 | I65: 0 | J65: 0
D66: 0 | E66: 0 | G66: 0 | H66: 68 | I66: 0 | J66: 0
A67: June | B67: =DATE($U$73,6,18) -> 2018-06-18 | C67: =DATE($U$73,6,30) -> 2018-06-30 | D67: 13 | E67: 13 | F67: 0 | G67: 10 | H67: 81 | I67: 8 | J67: 8
A68: July | B68: =DATE($U$73,7,1) -> 2018-07-01 | C68: =DATE($U$73,7,31) -> 2018-07-31 | D68: 31 | E68: 44 | F68: 1 | G68: 21 | H68: 85 | I68: 18 | J68: 26
A69: August | B69: =DATE($U$73,8,1) -> 2018-08-01 | C69: =DATE($U$73,8,31) -> 2018-08-31 | D69: 31 | E69: 75 | F69: 0 | G69: 23 | H69: 85 | I69: 20 | J69: 46
A70: September | B70: =DATE($U$73,9,1) -> 2018-09-01 | C70: =DATE($U$73,9,30) -> 2018-09-30 | D70: 30 | E70: 105 | F70: 1 | G70: 19 | H70: 70 | I70: 13 | J70: 59 | X70: Calendar Days | AB70: =E73 -> 115
A71: October | B71: =DATE($U$73,10,1) -> 2018-10-01 | C71: =DATE($U$73,10,10) -> 2018-10-10 | D71: 10 | E71: 115 | F71: 0 | G71: 8 | H71: 70 | I71: 6 | J71: 65 | X71: Working Days | AB71: 65
D72: 0 | E72: 115 | G72: 0 | I72: 0 | J72: 65 | X72: Completion Date | AB72: 2018-10-10
D73: 0 | E73: 115 | G73: 0 | I73: 0 | J73: 65 | K73: CONSTRUCTION YEAR: | U73: 2018 | X73: Prepared By
I75: Page 1 of 1

Sheet Example Time Chart
A1: CONTRACT TIME FOR COMPLETION
A2: Wisconsin Department of Transportation DT1923 09/2010
A4: Project ID | B4: 5992-05-88 | E4: Highway | F4: USH 151 | J4: Project Title | K4: East Washington Ave., City of Madison | AA4: Date of Letting | AB4: 2004-12-14
A5: Work Type | B5: Reconstruction | E5: County | F5: Dane | J5: Project Limits | K5: Melvin Court to Thierer Road | AA5: Probable Date of Beginning | AB5: 2005-03-14
A29: ITEM ANALYSIS
A30: Item | C30: Contract Quantity per Stage | H30: Total Quantity | I30: Unit | J30: Production Rate | L30: Working Days (per Stage) | U30: Stage 1 | W30: Stage 2 | Y30: Stage 3 | AA30: Stage 4 | AC30: Stage 5
C31: =U30 -> Stage 1 | D31: =W30 -> Stage 2 | E31: =Y30 -> Stage 3 | F31: =AA30 -> Stage 4 | G31: =AC30 -> Stage 5 | U31: Begin | V31: End | W31: Begin | X31: End | Y31: Begin | Z31: End | AA31: Begin | AB31: End | AC31: Begin | AD31: End | AG31: Gap 1 | AH31: Gap 2 | AI31: Gap 3 | AJ31: Gap 4 | AK31: Gap 5
A32: 1. Traffic Control | C32: 3 | D32: 1 | E32: 3 | F32: 1 | H32: =IF(AND(ISBLANK(C32),ISBLANK(D32),ISBLANK(E32),ISBLANK(F32),ISBLANK(G32)),"",SUM(C32:G32)) -> 8 | I32: Days | J32: 1 | L32: =IF(ISBLANK(C32),"",ROUNDUP(C32/$J32,0)) -> 3 | M32: / | N32: =IF(ISBLANK(D32),"",ROUNDUP(D32/$J32,0)) -> 1 | O32: / | P32: =IF(ISBLANK(E32),"",ROUNDUP(E32/$J32,0)) -> 3 | Q32: / | R32: =IF(ISBLANK(F32),"",ROUNDUP(F32/$J32,0)) -> 1 | S32: / | T32: =IF(ISBLANK(G32),"",ROUNDUP(G32/$J32,0)) ->  | U32: 0 | V32: =IF(U32<>"",U32+L32,"") -> 3 | W32: =V33 -> 11 | X32: =IF(ISBLANK(W32),"",W32+N32) -> 12 | Y32: =X48 -> 68 | Z32: =IF(ISBLANK(Y32),"",Y32+P32) -> 71 | AA32: =Z33 -> 88 | AB32: =IF(ISBLANK(AA32),"",AA32+R32) -> 89 | AD32: =IF(ISBLANK(AC32),"",AC32+T32) ->  | AG32: =U32 -> 0 | AH32: =IF(W32>0,IF(V32="",W32,W32-V32),0) -> 8 | AI32: =IF(Y32>0,IF(X32="",IF(V32>0,Y32-V32,Y32),Y32-X32),0) -> 56 | AJ32: =IF(AA32>0,IF(Z32="",IF(X32="",IF(V32="",AA32,AA32-V32),AA32-X32),AA32-Z32),0) -> 17 | AK32: =IF(AC32>0,IF(AB32="",IF(Z32="",IF(X32="",IF(V32="",AC32,AC32-V32),AC32-X32),AC32-Z32),AC32-AB32),0) -> 0
A33: 2. Temporary Pavement | C33: 7700 | E33: 7250 | H33: 14950 | I33: S.Y. | J33: 1000 | L33: =IF(ISBLANK(C33),"",ROUNDUP(C33/$J33,0)) -> 8 | M33: / | N33: =IF(ISBLANK(D33),"",ROUNDUP(D33/$J33,0)) ->  | O33: / | P33: =IF(ISBLANK(E33),"",ROUNDUP(E33/$J33,0)) -> 8 | Q33: / | R33: =IF(ISBLANK(F33),"",ROUNDUP(F33/$J33,0)) ->  | S33: / | T33: =IF(ISBLANK(G33),"",ROUNDUP(G33/$J33,0)) ->  | U33: =V32 -> 3 | V33: 11 | Y33: =Z39 -> 80 | Z33: 88 | AG33: 3 | AH33: 0 | AI33: 69 | AJ33: 0 | AK33: 0
A34: 3. Removing Pavement | D34: 34000 | E34: 2000 | F34: 34000 | H34: 70000 | I34: S.Y. | J34: 4000 | M34: / | N34: 9 | O34: / | P34: 1 | Q34: / | R34: 9 | S34: / | W34: =X32 -> 12 | X34: 21 | Y34: =Z32-1 -> 70 | Z34: 71 | AA34: =AB32 -> 89 | AB34: 98 | AG34: 0 | AH34: 12 | AI34: 49 | AJ34: 18 | AK34: 0
A35: 4. Sanitary Sewer | C35: 500 | D35: 1550 | E35: 150 | F35: 500 | H35: 2700 | I35: L.F. | J35: 400 | L35: 2 | M35: / | N35: 4 | O35: / | P35: 1 | Q35: / | R35: 2 | S35: / | U35: 3 | V35: 5 | W35: =X32+2 -> 14 | X35: 18 | Y35: =Z34 -> 71 | Z35: 72 | AA35: =AB34-7 -> 91 | AB35: 93 | AG35: 3 | AH35: 9 | AI35: 53 | AJ35: 19 | AK35: 0
A36: 5. Sanitary Manholes | D36: 8 | F36: 8 | H36: 16 | I36: Each | J36: 7 | M36: / | N36: 2 | O36: / | Q36: / | R36: 2 | S36: / | W36: =X35 -> 18 | X36: 20 | AA36: =AB35 -> 93 | AB36: 95 | AG36: 0 | AH36: 18 | AI36: 0 | AJ36: 73 | AK36: 0
A37: 6. Water Main (Inc. Laterals) | D37: 6800 | E37: 600 | F37: 2900 | H37: 10300 | I37: L.F. | J37: 200 | M37: / | N37: 34 | O37: / | P37: 3 | Q37: / | R37: 15 | S37: / | W37: =X34-8 -> 13 | X37: 47 | Y37: =Z35 -> 72 | Z37: 75 | AA37: =AB36-2 -> 93 | AB37: 108 | AG37: 0 | AH37: 13 | AI37: 25 | AJ37: 18 | AK37: 0
A38: 7. Storm Sewer | D38: 4000 | E38: 650 | F38: 4000 | H38: 8650 | I38: L.F. | J38: 400 | M38: / | N38: 10 | O38: / | P38: 2 | Q38: / | R38: 10 | S38: / | W38: =X37-15 -> 32 | X38: 42 | Y38: =Z37 -> 75 | Z38: 77 | AA38: =AB37-13 -> 95 | AB38: 105 | AG38: 0 | AH38: 32 | AI38: 33 | AJ38: 18 | AK38: 0
A39: 8. Storm Inlets and Manholes | D39: 72 | E39: 23 | F39: 93 | H39: 188 | I39: Each | J39: 10 | M39: / | N39: 8 | O39: / | P39: 3 | Q39: / | R39: 10 | S39: / | W39: =X38 -> 42 | X39: 50 | Y39: =Z38 -> 77 | Z39: 80 | AA39: =AB38 -> 105 | AB39: 115 | AG39: 0 | AH39: 42 | AI39: 27 | AJ39: 25 | AK39: 0
A40: 9. Structure (Ped Tunnel) | D40: 23 | E40: 20 | F40: 18 | H40: 61 | I40: Days | J40: 1 | M40: / | N40: 23 | O40: / | P40: 20 | Q40: / | R40: 18 | S40: / | W40: 45 | X40: 68 | Y40: =X40 -> 68 | Z40: 88 | AA40: =Z40 -> 88 | AB40: 106 | AG40: 0 | AH40: 45 | AI40: 0 | AJ40: 0 | AK40: 0
A41: 10. Common Excavation (Urban) | D41: 42000 | F41: 41000 | G41: 5000 | H41: 88000 | I41: C.Y. | J41: 2000 | M41: / | N41: 21 | O41: / | Q41: / | R41: 21 | S41: / | T41: 3 | W41: =X39-21 -> 29 | X41: 50 | AA41: =AB39-10 -> 105 | AB41: 126 | AC41: =AB48 -> 136 | AD41: 139 | AG41: 0 | AH41: 29 | AI41: 0 | AJ41: 55 | AK41: 10
A42: 11. Breaker Run (Urban) | D42: 37500 | F42: 35500 | G42: 6100 | H42: 79100 | I42: Ton | J42: 2000 | M42: / | N42: 19 | O42: / | Q42: / | R42: 18 | S42: / | T42: 4 | W42: =X41-12 -> 38 | X42: 57 | AA42: =AB41-16 -> 110 | AB42: 128 | AC42: =AD41-2 -> 137 | AD42: 141 | AG42: 0 | AH42: 38 | AI42: 0 | AJ42: 53 | AK42: 9
A43: 12 CABC (Urban) | D43: 21000 | F43: 21000 | G43: 3450 | H43: 45450 | I43: Ton | J43: 2000 | M43: / | N43: 11 | O43: / | Q43: / | R43: 11 | S43: / | T43: 2 | W43: =X42-10 -> 47 | X43: 58 | AA43: =AB42-15 -> 113 | AB43: 124 | AC43: =AD42 -> 141 | AD43: 143 | AG43: 0 | AH43: 47 | AI43: 0 | AJ43: 55 | AK43: 17
A44: 13. Concrete Pavement (Urban) | D44: 33500 | F44: 33500 | G44: 6850 | H44: 73850 | I44: S.Y. | J44: 3500 | M44: / | N44: 10 | O44: / | Q44: / | R44: 10 | S44: / | T44: 2 | W44: =X43-9 -> 49 | X44: 59 | AA44: =AB43-7 -> 117 | AB44: 127 | AC44: =AD43 -> 143 | AD44: 145 | AG44: 0 | AH44: 49 | AI44: 0 | AJ44: 58 | AK44: 16
A45: 14. Concrete Curb and Gutter | D45: 8400 | F45: 8400 | G45: 16000 | H45: 32800 | I45: L.F. | J45: 2000 | M45: / | N45: 5 | O45: / | Q45: / | R45: 5 | S45: / | T45: 8 | W45: =X44-3 -> 56 | X45: 61 | AA45: =AB44-3 -> 124 | AB45: 129 | AC45: =AD44-1 -> 144 | AD45: 152 | AG45: 0 | AH45: 56 | AI45: 0 | AJ45: 63 | AK45: 15
A46: 15. Concrete Sidewalk | D46: 2000 | F46: 2000 | H46: 4000 | I46: S.F. | J46: 500 | M46: / | N46: 4 | O46: / | Q46: / | R46: 4 | S46: / | W46: =X45-2 -> 59 | X46: 63 | AA46: =AB45-2 -> 127 | AB46: 131 | AG46: 0 | AH46: 59 | AI46: 0 | AJ46: 64 | AK46: 0
A47: 16. Concrete Driveway | D47: 1100 | F47: 500 | H47: 1600 | I47: S.Y. | J47: 150 | M47: / | N47: 8 | O47: / | Q47: / | R47: 4 | S47: / | W47: =X46-6 -> 57 | X47: 65 | AA47: =AB46-2 -> 129 | AB47: 133 | AG47: 0 | AH47: 57 | AI47: 0 | AJ47: 64 | AK47: 0
A48: 17. Seeding and Finishing | D48: 6200 | F48: 6200 | H48: 12400 | I48: S.Y. | J48: 1500 | M48: / | N48: 5 | O48: / | Q48: / | R48: 5 | S48: / | W48: =X47-2 -> 63 | X48: 68 | AA48: =AB47-2 -> 131 | AB48: 136 | AG48: 0 | AH48: 63 | AI48: 0 | AJ48: 63 | AK48: 0
M49: / | O49: / | Q49: / | S49: / | AG49: 0 | AH49: 0 | AI49: 0 | AJ49: 0 | AK49: 0
M50: / | O50: / | Q50: / | S50: / | AG50: 0 | AH50: 0 | AI50: 0 | AJ50: 0 | AK50: 0
M51: / | O51: / | Q51: / | S51: / | AG51: 0 | AH51: 0 | AI51: 0 | AJ51: 0 | AK51: 0
B53: Date | D53: Days | G53: Possible | H53: Probable Working Days | X53: REMARKS
A54: Month | B54: Begin | C54: End | D54: Month | E54: Total | F54: Holiday | G54: Work Days | H54: % | I54: Month | J54: Total
D55: =IF(AND(B55>0,C55>0),((C55+1)-B55),0) -> 0 | E55: =D55 -> 0 | G55: =NETWORKDAYS(B55,C55)-F55 -> 0 | I55: =ROUND(IF(G55>0,G55*H55*0.01,0),0) -> 0 | J55: =I55 -> 0
D56: 0 | E56: =E55+D56 -> 0 | G56: 0 | I56: 0 | J56: =J55+I56 -> 0
A57: March | B57: 2005-03-14 | C57: =DATE($U$66,3,31) -> 2005-03-31 | D57: 18 | E57: 18 | F57: 0 | G57: 14 | H57: 75 | I57: 11 | J57: 11
A58: April | B58: =DATE($U$66,4,1) -> 2005-04-01 | C58: =DATE($U$66,4,30) -> 2005-04-30 | D58: 30 | E58: 48 | F58: 0 | G58: 21 | H58: 80 | I58: 17 | J58: 28
A59: May | B59: =DATE($U$66,5,1) -> 2005-05-01 | C59: =DATE($U$66,5,31) -> 2005-05-31 | D59: 31 | E59: 79 | F59: 1 | G59: 21 | H59: 85 | I59: 18 | J59: 46
A60: June | B60: =DATE($U$66,6,1) -> 2005-06-01 | C60: =DATE($U$66,6,30) -> 2005-06-30 | D60: 30 | E60: 109 | F60: 0 | G60: 22 | H60: 95 | I60: 21 | J60: 67
A61: July | B61: =DATE($U$66,7,1) -> 2005-07-01 | C61: =DATE($U$66,7,31) -> 2005-07-31 | D61: 31 | E61: 140 | F61: 1 | G61: 20 | H61: 95 | I61: 19 | J61: 86
A62: August | B62: =DATE($U$66,8,1) -> 2005-08-01 | C62: =DATE($U$66,8,31) -> 2005-08-31 | D62: 31 | E62: 171 | F62: 0 | G62: 23 | H62: 85 | I62: 20 | J62: 106
A63: September | B63: =DATE($U$66,9,1) -> 2005-09-01 | C63: =DATE($U$66,9,30) -> 2005-09-30 | D63: 30 | E63: 201 | F63: 1 | G63: 21 | H63: 80 | I63: 17 | J63: 123 | X63: Calendar Days | AB63: =E66 -> 262
A64: October | B64: =DATE($U$66,10,1) -> 2005-10-01 | C64: =DATE($U$66,10,31) -> 2005-10-31 | D64: 31 | E64: 232 | F64: 0 | G64: 21 | H64: 75 | I64: 16 | J64: 139 | X64: Working Days | AB64: =J66 -> 152
A65: November | B65: =DATE($U$66,11,1) -> 2005-11-01 | C65: =DATE($U$66,11,30) -> 2005-11-30 | D65: 30 | E65: 262 | F65: 1 | G65: 21 | H65: 60 | I65: 13 | J65: 152 | X65: Completion Date | AB65: 2005-12-01
D66: 0 | E66: 262 | G66: 0 | I66: 0 | J66: 152 | K66: CONSTRUCTION YEAR: | U66: 2005 | X66: Prepared By | AB66: D. Layton
I68: Page 1 of 1
